Cogmind - Beta 16.1 @@@ ROGUE MODE // 2026.04.28 @ 07:15:27 // Winter2019/RPGLIKE Player: FL-IST Result: Destroyed by AE-AH9(R) with Subdweller Laser Performance ------------- Evolutions (0) 0 Regions Visited (3) 600 Robots Destroyed (59) 295 Value Destroyed (1573) 1573 Prototype IDs (0) 0 Alien Tech Used (0) 0 Bonus (18) 18 TOTAL SCORE: 2486 Bonus ------- Follower Combat Kills 33 Friendly Fire -15 Cogmind --------- Core Integrity 0/600 Matter 9/300 Energy 160/160 System Corruption 0% Temperature Cool (14) Movement Treading (160) Location -10/Subcaves Parts ------- > --- POWER (1) -------- Light Nuclear Core > --- PROPULSION (2) --- Light Treads Light Treads > --- UTILITY (2) ------ Seismic Detector Makeshift System Restoration Module > --- WEAPON (3) ------- Battle Cannon Slug Cannon Bore Cannon > --- INVENTORY (2) ---- Scrap Suit Peak State ------------ > --- POWER ------------ Light Nuclear Core > --- PROPULSION ------- Light Treads Light Treads > --- UTILITY ---------- Subdweller Optics Makeshift System Restoration Module > --- WEAPON ----------- Battle Cannon Slug Cannon Bore Cannon > --- INVENTORY -------- Scrap Suit [Rating: 22] Favorites ----------- Power Light Nuclear Core Engine Light Ion Engine Power Core Light Nuclear Core Propulsion Light Treads Treads Light Treads Wheel Compact Wheel Utility Seismic Detector Device Seismic Detector Protection Medium Armor Plating Weapon Bore Cannon Ballistic Gun Light Assault Rifle Ballistic Cannon Bore Cannon Build | -11 -10 -10 -10 ------- Run | Yrd Mat Min Sub Slots Evolved 4 | 3 1 . . Power . | . . . . Propulsion 1 | 1 . . . Utility 1 | . 1 . . Weapon 2 | 2 . . . Parts Attached 22 | 8 9 1 4 Power 2 | 1 1 . . Engine 1 | 1 . . . Core 1 | . 1 . . Reactor . | . . . . Propulsion 3 | 3 . . . Treads 2 | 2 . . . Leg . | . . . . Wheel 1 | 1 . . . Hover . | . . . . Flight . | . . . . Utility 5 | 1 2 . 2 Device 3 | 1 . . 2 Storage . | . . . . Processor . | . . . . Hackware . | . . . . Protection 2 | . 2 . . Artifact . | . . . . Weapon 12 | 3 6 1 2 Energy Gun . | . . . . Energy Cannon . | . . . . Ballistic Gun 3 | 3 . . . Ballistic Cannon 9 | . 6 1 2 Launcher . | . . . . Special Weapon . | . . . . Impact Weapon . | . . . . Slashing Weapon . | . . . . Piercing Weapon . | . . . . Special Melee Weapon . | . . . . Unidentified Prototypes . | . . . . Parts Lost 1 | . . . 1 Power . | . . . . Propulsion . | . . . . Utility 1 | . . . 1 Weapon . | . . . . Highest Loss Streak 1 | . . . 1 To Critical Strikes . | . . . . Average Backups . | . . . 1 Power . | . . . . Propulsion . | . . . . Utility . | . . . 1 Weapon . | . . . . Tool/Special . | . . . . Unused Backups 1 | . . . 1 Power . | . . . . Propulsion . | . . . . Utility 1 | . . . 1 Weapon . | . . . . Tool/Special . | . . . . Average Slot Usage (%) 95 | . 100 100 92 Engine 1 | . 6 . . Core 10 | . 6 12 12 Treads 25 | . 26 25 25 Device 15 | . 13 12 16 Protection 4 | . 5 12 1 Ballistic Cannon 37 | . 37 37 36 Peak Build Rating 22 | 7 14 17 22 Average Rating 16 | 5 8 16 18 On Entrance 9 | . 7 14 17 Avg Prop Armor Cover (%) . | . . . . Naked Turns . | . . . . Heaviest Build 30 | 8 25 30 30 Greatest Support 40 | 40 40 40 40 Greatest Overweight (x) . | . . . . Average Overweight (x) . | . . . . Largest Inventory Capacity 2 | . 1 2 2 Average Capacity 1 | . . 1 2 Most Carried 2 | . 1 2 2 Average Carried 1 | . . . 2 Final Capacity 2 | . 1 2 2 Final Carried 2 | . 1 2 2 Class Distribution -------------------- 78% | Gunner 21% | Derelict-Gunner Dominant Class ---------------- Gunner | -10/Materials Gunner | -10/Mines Gunner | -10/Subcaves Resources | -11 -10 -10 -10 ----------- Run | Yrd Mat Min Sub Matter Collected 2283 | 289 591 627 776 Remotely . | . . . . Salvage Created 1577 | 179 561 464 373 Parts 100 | 11 42 28 19 Haulers Intercepted 2 | . 2 . . Recyclers Shooed 4 | . 2 2 . Parts Field Recycled . | . . . . Retrieved Matter . | . . . . Parts Self-Destructed 5 | . . . 5 Prevented . | . . . . Parts Restored . | . . . . Kills | -11 -10 -10 -10 ------- Run | Yrd Mat Min Sub Combat Hostiles Destroyed 40 | . 15 11 14 Guns 2 | . 2 . . Cannons 37 | . 13 11 13 AOE 1 | . . . 1 Classes Destroyed 14 | 2 6 5 1 Worker 1 | . . 1 . Builder 2 | . 1 1 . Tunneler 6 | 5 . 1 . Hauler 2 | . 2 . . Recycler 5 | 1 . 4 . Mechanic 1 | . 1 . . Operator 1 | . 1 . . Watcher 3 | . 3 . . Swarmer 3 | . . 3 . Grunt 19 | . 15 4 . Sentry 1 | . . 1 . Demolisher 1 | . . 1 . Subdweller 14 | . . . 14 Assembled 2 | . . 2 . Best Kill Streak 6 | 6 3 3 2 Combat Bots Only 3 | . 2 3 2 Max Kills in Single Turn 2 | 1 1 2 1 Gunslinging . | . . . . Exploded 1 | . . . 1 Melee . | . . . . Uniques/NPCs Destroyed . | . . . . Combat | -11 -10 -10 -10 -------- Run | Yrd Mat Min Sub Hostile Shots Fired 102 | . 21 28 53 Missed 29 | . 7 9 13 Hits 73 | . 14 19 40 Projectile 73 | . 14 19 40 AOE 9 | . . 1 8 Critical Strikes 1 | . . . 1 Damage Taken 1954 | . 152 602 1200 Core 1498 | . 112 444 942 Absorbed by Shields . | . . . . Redirected to Core 1176 | . 112 278 786 Core Remaining (%) 100 | 100 . . . Volleys Fired 151 | 20 44 32 55 Largest 3 | 3 3 3 3 Hottest 121 | 60 90 114 121 Shots Fired 454 | 60 133 96 165 Gun 66 | 60 6 . . Cannon 388 | . 127 96 165 Launcher . | . . . . Special . | . . . . Kinetic 454 | 60 133 96 165 Thermal . | . . . . Explosive . | . . . . Electromagnetic . | . . . . Robot Hit Streak 12 | 5 6 6 12 Robot Miss Streak 5 | 3 5 4 5 Penetration Max 1 | . . 1 . Secondary Targets . | . . . . Shots Hit Robots 228 | 34 64 46 84 Core Hits 80 | 11 26 19 24 Critical Kills 7 | . 1 4 2 Critical Parts Destroyed 6 | . . 2 4 Critical Strikes 30 | . 4 6 20 Destroy 26 | . 1 6 19 Blast 4 | . 3 . 1 Melee Attacks . | . . . . Impact . | . . . . Slashing . | . . . . Piercing . | . . . . Sneak Attacks . | . . . . Combat Hostiles . | . . . . Follow-up Attacks . | . . . . Damage Inflicted 4502 | 349 1113 1048 1992 Guns 392 | 349 43 . . Cannons 4110 | . 1070 1048 1992 Explosions . | . . . . Melee . | . . . . Ramming . | . . . . Kinetic 4502 | 349 1113 1048 1992 Thermal . | . . . . Explosive . | . . . . Electromagnetic . | . . . . Impact . | . . . . Slashing . | . . . . Piercing . | . . . . Highest Corruption 2 | . 2 2 2 Average Corruption 1 | . 2 2 1 Corruption Purged 2 | . . . 2 Corruption Blocked . | . . . . Effects 71 | . 17 20 34 Message Errors 16 | . 4 5 7 Matter Fused 17 | . 2 5 10 Heat Flow Errors 11 | . 4 4 3 Energy Discharges 7 | . 2 3 2 Parts Fused 1 | . 1 . . Data Loss (minor) 14 | . 2 2 10 Data Loss (major) 3 | . 1 1 1 Misfires 1 | . 1 . . Alerts 1 | . . . 1 Overload Shots . | . . . . Overflow Damage 114 | . 23 91 . Projectiles 114 | . 23 91 . Explosions . | . . . . Melee . | . . . . Knockbacks 41 | . 11 11 19 Impact . | . . . . Kinetic 41 | . 11 11 19 Secondary . | . . . . Self-Inflicted Damage . | . . . . Shots . | . . . . Rammed . | . . . . Targets Rammed . | . . . . Kicked . | . . . . Crushed . | . . . . Highest Temperature 330 | 40 276 330 249 Average Temperature 70 | 21 75 102 27 Received Heat Transfer 336 | . 87 60 189 Siege Activations . | . . . . Martial Activations . | . . . . Shielding Activations . | . . . . Robots Disrupted . | . . . . Combat Hostiles . | . . . . Robots Corrupted . | . . . . Combat Hostiles . | . . . . Parts Fried . | . . . . Impact Corruptions . | . . . . Robots Melted . | . . . . Combat Hostiles . | . . . . Parts Melted . | . . . . Heat Transferred . | . . . . Parts Sabotaged . | . . . . Parts Stolen . | . . . . Parts Stripped . | . . . . Power Chain Reactions . | . . . . Alert | -11 -10 -10 -10 ------- Run | Yrd Mat Min Sub Maximum Alert Level 1 | . 1 . . Low Security (%) 99 | 100 98 100 . Level 1 . | . 1 . . Level 2 . | . . . . Level 3 . | . . . . Level 4 . | . . . . Level 5 . | . . . . High Security . | . . . . Max Security . | . . . . Peak Influence 206 | 10 206 87 . Initial 46 | . . 46 . Average 52 | 3 86 20 . Influence Increases 881 | 30 559 292 . Destroy 0b10 Robot/C 500 | . 300 200 . Destroy 0b10 Robot/NC 105 | 30 40 35 . Destroy Leader 130 | . 100 30 . Allied During Kill 10 | . . 10 . Successful Hack 24 | . 24 . . Select Force Hacks 60 | . 60 . . Disable Machine 15 | . 15 . . Destroy Structure 22 | . 5 17 . Partial Spotted 15 | . 15 . . Influence Decreases 881 | 30 438 413 . Entered New Map 75 | . . 75 . Time Decay 806 | 30 438 338 . Squads Dispatched 6 | . 6 . . Investigation 5 | . 5 . . Extermination . | . . . . Reinforcement 1 | . 1 . . Assault . | . . . . Garrison . | . . . . Intercept . | . . . . Searches Triggered . | . . . . Construction Impeded . | . . . . Haulers Reinforced . | . . . . Active Scanning Responses . | . . . . Cargo Convoy Interrupts . | . . . . Stealth | -11 -10 -10 -10 --------- Run | Yrd Mat Min Sub Distress Signals 2 | . 1 1 . Communications Jammed . | . . . . Distress Signals . | . . . . Times Spotted 52 | . 21 12 19 Peak Tracking Total 3 | . 3 3 2 Tactical Retreats 2 | . . . 2 Traps | -11 -10 -10 -10 ------- Run | Yrd Mat Min Sub Traps Triggered 4 | . 4 . . Indirectly . | . . . . Trap Hack Attempts . | . . . . Triggered . | . . . . Disarmed . | . . . . Reprogrammed . | . . . . Reused . | . . . . Traps Extracted . | . . . . Installed . | . . . . Triggered . | . . . . Machines | -11 -10 -10 -10 ---------- Run | Yrd Mat Min Sub Machines Disabled 3 | . 1 2 . Max in Single Turn 1 | . 1 1 . Machines Repaired . | . . . . Machines Dismantled . | . . . . Machines Sabotaged . | . . . . Overloaded Fab Kills . | . . . . Hacking | -11 -10 -10 -10 --------- Run | Yrd Mat Min Sub Machines Accessed 9 | . 8 . 1 Terminals 6 | . 6 . . Fabricators . | . . . . Repair Stations . | . . . . Recycling Units 2 | . 2 . . Scanalyzers . | . . . . Garrison Access . | . . . . Total Hacks 24 | . 19 . 5 Successful 19 | . 14 . 5 Failed 4 | . 4 . . Catastrophic . | . . . . Database Lockouts 1 | . 1 . . Manual 18 | . 18 . . Terminals 15 | . 15 . . Fabricators . | . . . . Repair Stations . | . . . . Recycling Units 4 | . 4 . . Scanalyzers . | . . . . Garrison Access . | . . . . Terminal Hacks 7 | . 2 . 5 Record 5 | . . . 5 Robot Analysis 2 | . 2 . . Fabricator Hacks . | . . . . Repair Station Hacks . | . . . . Recycling Unit Hacks 2 | . 2 . . Retrieve Components 2 | . 2 . . Scanalyzer . | . . . . Garrison Access Hacks . | . . . . Unauthorized Hacks 10 | . 10 . . Terminals 8 | . 8 . . Botnet 3 | . 3 . . Skim 5 | . 5 . . Fabricators . | . . . . Repair Stations . | . . . . Recycling Units 2 | . 2 . . Tunnel 2 | . 2 . . Scanalyzers . | . . . . Garrison Access . | . . . . Data Cores Recovered . | . . . . Used . | . . . . Hacking Detections 5 | . 5 . . Full Trace Events . | . . . . Feedback Events . | . . . . Feedback Blocked . | . . . . Robot Schematics Acquired . | . . . . Robots Built . | . . . . Authchips . | . . . . Time . | . . . . Total Robot Build Rating . | . . . . Part Schematics Acquired . | . . . . Parts Built . | . . . . Authchips . | . . . . Time . | . . . . Total Part Build Rating . | . . . . Part Studies Acquired . | . . . . Parts Repaired . | . . . . Time . | . . . . Parts Recycled . | . . . . Recycled Matter . | . . . . Retrieved Matter . | . . . . Retrieved Components 19 | . 19 . . Parts Scanalyzed . | . . . . Part Schematics Acquired . | . . . . Parts Damaged . | . . . . Bothacking | -11 -10 -10 -10 ------------ Run | Yrd Mat Min Sub Used RIF Installer . | . . . . Robots Hacked . | . . . . Non-combat . | . . . . Combat . | . . . . Robot Hacks Applied . | . . . . Relay Couplers Released . | . . . . Fabnet Peak Effective % . | . . . . Robots Rewired . | . . . . Allies Hacked . | . . . . Hacks Repelled . | . . . . Allies | -11 -10 -10 -10 -------- Run | Yrd Mat Min Sub Total Allies 2 | . . 2 . Largest Group 2 | . . 2 2 Highest-Rated Group 41 | . . 41 36 Highest-Rated Ally 31 | . . 31 26 Total Orders . | . . . . Ally Attacks 3 | . . 2 1 Total Damage 44 | . . 22 22 Kills 1 | . . 1 . Allies Corrupted . | . . . . Allies Melted . | . . . . Intel | -11 -10 -10 -10 ------- Run | Yrd Mat Min Sub Active Infowar (turns) 6831 | 11 1356 1287 4177 Optics 2 | . . . 2 Seismic 6829 | 11 1356 1287 4175 Robot Analysis Total 2 | . 2 . . Derelict Logs Recovered 2 | . . 1 1 Drone Launches . | . . . . Drone Recoveries . | . . . . Exploration | -11 -10 -10 -10 ------------- Run | Yrd Mat Min Sub Turns Passed 6936 | 115 1357 1287 4177 Spaces Moved 3074 | 34 720 698 1622 Core 2 | 2 . . . Treads 3063 | 23 720 698 1622 Legs . | . . . . Wheels 9 | 9 . . . Hover . | . . . . Flight . | . . . . Fastest Speed 50 | 50 160 160 160 Average Speed 159 | 137 160 160 160 Slowest Speed 160 | 160 160 160 160 Overloaded Moves . | . . . . Propulsion Burnouts . | . . . . Robots Hopped . | . . . . Potential Cave-ins . | . . . . Cave-ins Triggered 1 | . . 1 . Exploration Rate (%) 70 | 4 92 99 87 Regions Visited 3 Branch Regions 2 Pre-discovered Areas 4 | . 2 . 2 Known Exits Taken 1 | . . 1 . Unknown Exits Taken 2 | 1 1 . . Scrap Searched 7 | . . 1 6 Spaces Dug . | . . . . Terrain Destroyed 55 | . . 24 31 Melee . | . . . . Projectile 55 | . . 24 31 AOE . | . . . . Terrain Rammed . | . . . . Walls Destroyed . | . . . . Machines Disabled . | . . . . Actions | -11 -10 -10 -10 --------- Run | Yrd Mat Min Sub Total 4762 | 61 825 797 3079 Wait 1453 | . 35 41 1377 Move 3071 | 33 719 697 1622 Hop . | . . . . Pick Up 2 | . 1 1 . Fast Attach 11 | 7 1 . 3 Attach . | . . . . Detach . | . . . . Swap 14 | 1 10 1 2 Drop 7 | . 3 2 2 Fire 151 | 20 44 32 55 Melee . | . . . . Ram . | . . . . Kick . | . . . . Crush . | . . . . Escape Stasis . | . . . . Rewire . | . . . . Trap . | . . . . Miscellaneous 53 | . 12 23 18 Route ------- -11/Scrapyard -10/Materials (discovered 4 exits: *Mat x2 / [*Min] / Sub) -10/Mines (discovered 3 exits: *Mat x2 / *Sub) -10/Subcaves (discovered 2 exits: [*Mat] / Rec) History --------- Turn | Location | Event 10 | -11/Scrapyard | Upgraded with Weapon slot (x2) 10 | -11/Scrapyard | Upgraded with Propulsion slot (x1) 21 | -11/Scrapyard | Discovered new exit (range 16) 116 | -11/Scrapyard | Entered Materials 140 | -10/Materials | Central database locked down 316 | -10/Materials | Build established: Gunner 864 | -10/Materials | Upgraded with Utility slot (x1) 887 | -10/Materials | Reached level 2 900 | -10/Materials | Discovered new exit (range 16) 1153 | -10/Materials | Discovered new exit (range 8) 1293 | -10/Materials | Discovered new exit (range 16) 1308 | -10/Materials | Learned location of 1 exit from Storage 1350 | -10/Materials | Learned Storage trap positions 1383 | -10/Materials | Identified exit to Subcaves 1416 | -10/Materials | Learned location of 1 exit from Storage 1418 | -10/Materials | Identified exit to Materials 1473 | -10/Materials | Entered Mines 1502 | -10/Mines | Reached level 3 1561 | -10/Mines | Assembled infested the area 1566 | -10/Mines | Assisted by a Guerilla fighting off Assembled 1658 | -10/Mines | Crushed by falling debris 1706 | -10/Mines | Core integrity fell below 50% 1748 | -10/Mines | Discovered exit to Materials (range 10) 1759 | -10/Mines | Discovered exit to Subcaves (range 9) 1805 | -10/Mines | Discovered exit to Materials (range 7) 1956 | -10/Mines | A weapon hastily lodged in a ceiling crevice suddenly fell to the ground 2209 | -10/Mines | Joined a pair of Derelicts in attacking an 0b10 outpost 2705 | -10/Mines | Found a Scrap Suit stashed away for nefarious purposes 2709 | -10/Mines | Found Scrap Suit 2760 | -10/Mines | Entered Subcaves 2760 | -10/Subcaves | Accompanied by 2 allies 2761 | -10/Subcaves | Approached by a straggling Scientist 2761 | -10/Subcaves | Identified exit to Recycling 2762 | -10/Subcaves | Reached level 4 2765 | -10/Subcaves | Led the pair of lost Derelicts to an unsafe place 3032 | -10/Subcaves | Learned location of Zion (-6) 3032 | -10/Subcaves | Met a Zionite searching for "candidates" 3247 | -10/Subcaves | Shifting Twisted Machinery released Slug Cannon 3250 | -10/Subcaves | Shifting Twisted Machinery released Ripper 3251 | -10/Subcaves | Learned location of 1 exit from Materials 3281 | -10/Subcaves | Shifting Twisted Machinery released Sub. Power Source 3322 | -10/Subcaves | Core integrity fell below 20% 3658 | -10/Subcaves | A Subdweller sparked back to life 3658 | -10/Subcaves | A Subdweller sparked back to life 4572 | -10/Subcaves | Discovered new exit (range 8) 4906 | -10/Subcaves | Shifting Twisted Machinery released Sub. Beam Cannon 4908 | -10/Subcaves | Shifting Twisted Machinery released Sub. Power Source 5237 | -10/Subcaves | Shifting Twisted Machinery released Battle Cannon 5250 | -10/Subcaves | Visited Clippyterm 5254 | -10/Subcaves | Learned location of Section 7 (-2) 5254 | -10/Subcaves | Learned Factory garrison access intel 5764 | -10/Subcaves | Build established: Derelict-Gunner 5999 | -10/Subcaves | Ambushed by Subdwellers from Twisted Machinery 6870 | -10/Subcaves | A swath of the cavern ceiling suddenly collapsed 6937 | -10/Subcaves | Destroyed by AE-AH9(R) with Subdweller Laser Last Messages --------------- 06089_ HV Slug penetrates Wall. 06093_ Slug penetrates VH-KC5(R). 06093_ VH-KC5(R) destroyed. 06093_ HV Slug penetrates Wall. 06093_ SJ-QHH(O) collects matter. 06101_ Used Protomatter to restore core integrity (+78, depleted) 06101_ SJ-QHH(O) collects matter. 06136_ Acquired Unknown Device. 06136_ Identified Sub. Optics. 06138_ Acquired Seismic Detector. A swath of the cavern ceiling suddenly collapses. 06894_ HV Slug penetrates Twisted Machinery. 06925_ AE-AH9(R) knocked back. 06925_ Slug penetrates AE-AH9(R). 06925_ HV Slug penetrates AE-AH9(R). 06925_ AE-AH9(R) suffers critical hit (Destroy). 06928_ AE-AH9(R) knocked back. 06931_ HV Slug penetrates Wall. 06935_ AE-AH9(R) suffers critical hit (Destroy). 06935_ AE-AH9(R) knocked back. Map ----- +----------------------------------------------------+ | ???????????????????????????????????????????? | | ???????????????????????????????????????????? | | ???????????????????????????????????????????? | | ???????????????????????????????????????????? | | ???????????????????????????????????????????? | | ???????????????????????????????????????????? | | ???????????????????????????????????????????? | | ???????????????????????????????????????????? | | ???????????????????????????????????????????? | | ???????????????????????????????????????????? | | ???????????????????????????????????????????? | | ???????????????????????????????????????????? | | ???????????????????????????????????????????? | | ???????????????????????????????????????????? | | ???????????????????????????????????????????? | | ????????????????#""????????????????????????? | | ????????????????"""????????????????????????? | | ????????????????# ????????????????????????? | | ????????????????# ????????????????????????? | | ???????????????## ??????# ??????????????? | | ??????????????## ????? ##????????????? | | ??????????????#; ????? ##???????????? | | ??????????????#;R ?????? #???????????? | | ??????????????##% ##????? #???????????? | | ??????????????#" ##???? #???????????? | | ??????????????#" @##??? #???????????? | | ??????????????## ##?? ???????????? | | ???????????????# #??# ????????????? | | ???????????????# #??? ????????????? | | ???????????????## ##?? ?????????????? | | ????????????????## #???? ?????????????? | | ?????????????????# ##????####?????????????? | | ?????????????????## ##????#"##??#####??????? | | ????????????????###" ##??## ##?## #??????? | | ????????????????#"# ""#### #?# #??????? | | ??????????????#### """" ## ### #??????? | | ??????????????# " """ ## #??????? | | ??????????????# " ### #??????? | | ??????????????# ####^ ^#??????? | | ??????????????# # ### ######## | | ??????????????###"" # ## ^ ## | | ????????????????#"" ### ## ## | | ????????????????#"" # ### ## | | ????????????????##" ^#?## ### ^ # | | ?????????????????# ##??####?# ^ ^ | | ?????????????????## ## #????????# ^ | | ??????????????????########????????## | | ???????????????????????????????????### | | ?????????????????????????????????????## ^ | | ??????????????????????????????????????# | +----------------------------------------------------+ Best States ------------- Heat Dissipation 25 Energy Generation 14 Energy Capacity 160 Matter Stores 300 Matter Capacity 300 Sight Range 16 Terrain Scan Density 10 Armor Coverage 225 Evasion (%) 40 Recoil Reduction 2 Item Schematics ----------------- None Robot Schematics ------------------ None Fabricated ------------ Nothing Repaired ---------- Nothing Studied --------- None Alien Tech Used ----------------- None Achievements -------------- None Challenges ------------ None RPGLIKE | -11 -10 -10 -10 --------- Run | Yrd Mat Min Sub Levels Raised 3 | . 1 1 1 XP Earned 8021 | 3000 2355 1666 1000 XP Spent 3050 | 1800 750 500 . Upgrades 6 | 3 2 1 . Propulsion Slot 1 | 1 . . . Utility Slot 1 | . 1 . . Weapon Slot 2 | 2 . . . Inventory Capacity 2 | . 1 1 . Protomatter Created 346 | . 183 38 125 Integrity Restored 1024 | . 171 480 373 Core 886 | . 112 444 330 Parts 138 | . 59 36 43 Protomatter Decayed 105 | . 77 28 . Game ------ Seed ForceCoolingLaser Manual? 0 Play Time 00:26:02 Cumulative 408.0 hours Start 2026.04.28 @ 06:55:14 End 2026.04.28 @ 07:15:27 Sessions 1 Manual Loads 0 Difficulty Rogue Special Mode Winter2019/RPGLIKE Game No. 311 Rogue 311 Adventurer 0 Explorer 0 Win Type - Total 26 Types 15/0/8/2/0/0/0/0/1/0 Lore% 89 Gallery% 80 Achievement% 70 Wizard Run 0 Options --------- Layout 0 ASCII 0 Keyboard 0 Movement Numpad Keybinds 0 Fullscreen 1 Font 24/Smallcaps Map View 113x50 Zoom Use 0% Tactical HUD 1 Map Filters NONE Filters NONE Steam 1 RUN: 56e46353-06e1-48d9-a26a-5688657a268d